bitfinex-derivatives/quotes_SOLF0:USTF0_20260215
["timestamp","ask_amount","ask_price","bid_price","bid_amount"]
[1771123502496,10.226,88.059,87.989,23.05872422]
[1771123504602,10.2272,88.049,87.989,23.05872422]
[1771123507598,10.2261,88.058,87.993,23.04502563]
[1771123508908,10.2261,88.058,87.995,23.04502563]
[1771123509109,10.2248,88.07,87.995,23.04502563]
[1771123509407,401.42,88.091,88.021,23.01657819]
[1771123510096,10.2236,88.08,88.022,10.2302]
[1771123510298,10.2236,88.08,88.023,23.01657819]
[1771123510801,10.2251,88.067,88.023,23.01657819]
[1771123511001,227.34,88.126,87.99,6.02813291]
[1771123511002,453.42,88.078,87.991,22.96266497]
[1771123511317,6.02813291,88.07,87.991,22.96266497]
[1771123512694,10.2271,88.05,87.994,10.2335]
[1771123512894,10.2271,88.05,87.995,22.96266497]
[1771123513708,10.2257,88.062,87.995,22.96266497]
[1771123514110,10.2266,88.054,87.995,22.96266497]
[1771123515212,6.02813291,88.07,87.995,22.96266497]
[1771123515405,377.28,88.069,87.995,22.96266497]
[1771123515600,10.2251,88.067,87.995,22.96266497]
[1771123516408,302.1251,88.067,87.995,22.96266497]
[1771123516911,302.1251,88.067,87.97,6.02813291]
[1771123516912,302.1251,88.067,87.998,22.98536088]
[1771123517412,302.1251,88.067,88.001,10.2327]
[1771123517611,302.1251,88.067,88.002,22.98536932]
[1771123518607,10.2251,88.067,88.006,22.98536932]
[1771123518801,307.08,88.066,88.006,22.98536932]
[1771123519608,307.08,88.066,88.009,22.98546131]
[1771123519907,10.2254,88.065,88.009,22.98546131]
[1771123520413,463.5654,88.065,88.009,22.98546131]
[1771123523513,10.2254,88.065,88.009,22.98546131]
[1771123523713,10.2237,88.079,88.009,22.98546131]
[1771123523918,274.28,88.09,88.009,22.98546131]
[1771123524412,10.2226,88.089,88.027,22.96560229]
[1771123525816,10.2233,88.083,88.03,22.95915848]
[1771123527610,274.28,88.09,88.03,22.95915848]
[1771123528613,10.2205,88.107,88.033,22.96737266]
[1771123528812,453.28,88.092,88.033,22.96737266]
[1771123529209,10.2205,88.107,88.01,6.02813291]
[1771123529210,10.2205,88.107,88.035,22.99804423]
[1771123529518,90.66,88.106,88.035,22.99804423]
[1771123529815,90.66,88.106,88.037,10.2285]
[1771123530015,90.66,88.106,88.038,22.99804423]
[1771123531208,90.66,88.106,88.04,10.2281]
[1771123531420,90.66,88.106,88.041,22.98561007]
[1771123531917,90.66,88.106,88.043,22.98561007]
[1771123532510,6.02813291,88.12,88.045,22.98561007]
[1771123532716,90.64,88.119,88.045,22.98561007]
[1771123533313,34.09,88.139,88.056,22.98009622]
[1771123533515,249.58,88.138,88.056,22.98009622]
[1771123533715,405.76,88.137,88.056,22.98009622]
[1771123533916,405.76,88.137,88.068,22.98009622]
[1771123534821,34.09,88.136,88.068,22.98009622]
[1771123535624,34.09,88.135,88.054,23.03466643]
[1771123535821,6.02813291,88.12,88.054,23.03466643]
[1771123536924,2.40696178,88.1,88.054,23.03466643]
[1771123537227,2.40696178,88.11,88.054,23.03466643]
[1771123542434,2.40696178,88.1,88.054,23.03466643]
[1771123543733,2.40696178,88.11,88.054,23.03466643]
[1771123544127,10.2203,88.108,88.054,23.03466643]
[1771123544430,2.40696178,88.1,88.054,23.03466643]
[1771123544831,10.2192,88.118,88.054,23.03466643]
[1771123545031,2.40696178,88.11,88.054,23.03466643]
[1771123547035,12.62716178,88.11,88.054,23.03466643]
[1771123547738,10.219,88.119,88.061,22.98111099]
[1771123548139,2.40696178,88.11,88.061,22.98111099]
[1771123548936,10.2203,88.109,88.061,22.98111099]
[1771123552239,10.2192,88.118,88.061,22.98111099]
[1771123552942,10.2201,88.11,88.061,22.98111099]
[1771123556145,12.62706178,88.11,88.061,22.98111099]
[1771123557845,10.221,88.103,88.061,22.98111099]
[1771123558043,2.40696178,88.1,88.048,22.99378677]
[1771123558240,2.40696178,88.11,88.048,22.99378677]
[1771123558445,2.40696178,88.12,88.061,22.99378677]
[1771123558845,2.40606895,88.12,88.061,22.99378677]
[1771123559349,10.2196,88.115,88.063,23.0068169]
[1771123560150,10.2183,88.126,88.071,23.0068169]
[1771123560737,10.2183,88.126,88.073,23.0068169]
[1771123560947,10.2171,88.136,88.081,23.0068169]
[1771123562245,2.40606895,88.12,88.069,22.93905621]
[1771123563853,10.2201,88.111,88.069,22.93905621]
[1771123564349,10.2201,88.111,88.013,28.02196576]
[1771123564350,10.2212,88.101,88.05,2.40606895]
[1771123564552,2.40606895,88.09,88.051,22.9405319]
[1771123565155,12.62736895,88.1,88.051,22.9405319]
[1771123570862,90.6,88.108,88.061,23.00353982]
[1771123570863,10.2203,88.108,88.061,23.00353982]
[1771123572759,10.2203,88.108,88.001,34.09]
[1771123572760,10.2174,88.133,88.081,23.04319984]
[1771123574851,2.40606895,88.14,88.081,23.04319984]
[1771123575254,2.40606895,88.14,88.083,23.01785263]
[1771123575658,10.2168,88.139,88.083,23.01785263]
[1771123577266,2.40606895,88.13,88.083,23.01785263]
[1771123579169,10.2168,88.139,88.083,23.01785263]
[1771123583868,10.2184,88.125,88.083,23.01785263]
[1771123584064,2.40606895,88.12,88.083,23.01785263]
[1771123585170,10.2184,88.125,88.083,23.01785263]
[1771123585370,2.40606895,88.12,88.083,23.01785263]
[1771123587274,10.2184,88.125,88.083,23.01785263]
[1771123589871,2.40606895,88.13,88.083,23.01785263]
[1771123590079,10.2174,88.134,88.083,23.01785263]
[1771123594074,10.2184,88.125,88.083,23.01785263]
[1771123594376,2.40606895,88.13,88.083,23.01785263]
[1771123595082,2.40606895,88.14,88.083,23.01785263]
[1771123595270,10.2173,88.134,88.083,23.01785263]
[1771123597974,2.40606895,88.13,88.083,23.01785263]
[1771123598879,2.40606895,88.12,88.07,22.9599066]
[1771123599681,10.2195,88.116,88.07,22.9599066]
[1771123600178,42.52423576,88.149,88.072,22.96028691]
[1771123600379,20.4287,88.16,88.072,22.96028691]
[1771123600380,2.40606895,88.13,88.072,22.96028691]
[1771123600581,34.09,88.147,88.072,22.96028691]
[1771123600582,2.40606895,88.12,88.072,22.96028691]
[1771123601786,10.2199,88.112,88.072,22.96028691]
[1771123606090,10.2209,88.104,88.072,22.96028691]
[1771123606387,10.2209,88.104,88.06,23.00412784]
[1771123607189,14.6369,88.127,88.06,23.00412784]
[1771123607386,14.6369,88.127,88.014,28.02196576]
[1771123607387,2.40606895,88.2,88.121,9.44977424]
[1771123607589,2.40606895,88.2,88.13,2.40606895]
[1771123607890,2.40606895,88.2,88.131,9.44977424]
[1771123608089,10.2103,88.195,88.131,9.44977424]
[1771123608388,2.40606895,88.21,88.141,9.44977424]
[1771123608790,90.6,88.215,88.15,2.40606895]
[1771123608990,90.6,88.215,88.151,9.40625987]
[1771123609487,90.6,88.215,88.16,2.40606895]
[1771123609992,3.86511921,88.22,88.17,2.40606895]
[1771123610191,3.86511921,88.22,88.18,2.40606895]
[1771123611789,3.86511921,88.217,88.19,2.40606895]
[1771123614791,452.78,88.252,88.19,2.40606895]
[1771123614986,3.86511921,88.251,88.2,2.40606895]
[1771123616498,3.86511921,88.251,88.19,2.40606895]
[1771123616795,3.86511921,88.239,88.18,2.40606895]
[1771123617598,3.86511921,88.229,88.173,3.7277454]
[1771123619504,3.86511921,88.229,88.18,2.40606895]
[1771123620998,3.86511921,88.229,88.18,2.39978905]
[1771123621199,3.86511921,88.209,88.15,2.39978905]
[1771123621408,3.86511921,88.209,88.15,3.7277454]
[1771123621596,3.86511921,88.209,88.097,14.0612856]
[1771123621597,2.39978905,88.19,88.135,3.7277454]
[1771123621902,3.86511921,88.168,88.11,2.39978905]
[1771123622108,2.39978905,88.17,88.052,90.52]
[1771123622109,3.86511921,88.188,88.13,2.39978905]
[1771123622310,3.86511921,88.188,88.14,2.39978905]
[1771123622500,3.86511921,88.188,88.13,2.39978905]
[1771123623607,3.86511921,88.202,88.16,2.39978905]
[1771123624303,3.86511921,88.202,88.102,90.52]
[1771123624505,3.86511921,88.189,88.13,6.12753445]
[1771123624905,3.86511921,88.183,88.12,2.39978905]
[1771123625209,3.86511921,88.179,88.12,2.39978905]
[1771123625605,3.86511921,88.179,88.116,3.7277454]
[1771123625906,3.86511921,88.176,88.121,3.7277454]
[1771123627608,3.86511921,88.172,88.121,3.7277454]
[1771123628510,10.2131,88.171,88.121,3.7277454]
[1771123629007,3.86511921,88.188,88.141,3.7277454]
[1771123629209,3.86511921,88.186,88.13,2.39978905]
[1771123629412,3.86511921,88.186,88.13,6.12753445]
[1771123629803,10.2129,88.172,88.13,3.7277454]
[1771123630516,10.214,88.163,88.12,2.39978905]
[1771123631009,14.07911921,88.163,88.116,3.7277454]
[1771123631810,10.2147,88.157,88.116,3.7277454]
[1771123633605,2.39978905,88.16,88.1,2.39978905]
[1771123633914,3.60992067,88.159,88.1,2.39978905]
[1771123634712,10.2169,88.138,88.1,2.39978905]
[1771123635417,10.2169,88.138,88.11,2.39978905]
[1771123636016,10.2157,88.148,88.12,8.905e-05]
[1771123636317,10.2157,88.148,88.111,1.8865816]
[1771123637518,3.60992067,88.159,88.111,1.8865816]
[1771123647531,3.60992067,88.156,88.111,1.8865816]
[1771123648635,13.82492067,88.154,88.111,1.8865816]
[1771123649132,3.60992067,88.153,88.111,1.8865816]
[1771123650425,10.2155,88.15,88.111,1.8865816]
[1771123650628,3.60992067,88.149,88.091,1.9015199]
[1771123651225,10.2173,88.134,88.091,1.9015199]
[1771123651632,3.60992067,88.133,88.078,1.93068716]
[1771123651834,20.4283,88.162,88.063,1.93068716]
[1771123651835,3.60992067,88.119,88.063,1.93068716]
[1771123653738,3.60992067,88.117,88.063,1.93068716]
[1771123655240,3.60992067,88.117,88.065,2.00264462]
[1771123657143,2.39978905,88.13,88.071,2.00442249]
[1771123657339,10.2177,88.131,88.08,2.39978905]
[1771123657637,3.60992067,88.13,88.081,2.00442249]
[1771123660534,3.60992067,88.127,88.081,2.00442249]
[1771123661642,3.90371368,88.125,88.081,2.00442249]
[1771123662445,14.12241368,88.122,88.081,2.00442249]
[1771123662741,3.90371368,88.121,88.081,2.00442249]
[1771123667844,3.90371368,88.121,88.07,2.39978905]
[1771123667845,3.91087347,88.118,88.071,1.96805958]
[1771123668447,3.91087347,88.118,88.08,2.39978905]
[1771123668644,3.91087347,88.118,88.081,1.96805958]
[1771123668843,10.2193,88.117,88.081,1.96805958]
[1771123673250,14.13017347,88.117,88.081,1.96805958]
[1771123675645,3.91087347,88.117,88.081,1.96805958]
[1771123677551,20.4283,88.162,88.07,2.39978905]
[1771123677552,3.91087347,88.131,88.1,2.39978905]
[1771123677950,3.91087347,88.131,88.091,1.96235082]
[1771123679550,10.2169,88.138,88.07,10.2246]
[1771123679551,10.2169,88.138,88.101,1.82552082]
[1771123680258,14.12777347,88.138,88.101,1.82552082]
[1771123680451,10.2173,88.134,88.101,1.82552082]
[1771123680852,3.91087347,88.137,88.101,1.82552082]
[1771123681654,3.91892365,88.125,88.08,2.39978905]
[1771123681955,3.91892365,88.125,88.07,2.39978905]
[1771123682658,3.91892365,88.114,88.07,2.39978905]
[1771123682858,3.91892365,88.114,88.07,2.40556497]
[1771123683256,3.91087347,88.103,88.049,10.2271]
[1771123683462,3.91087347,88.103,87.983,159.2088]
[1771123683463,3.91087347,88.103,88.05,2.40556497]
[1771123684861,3.91087347,88.1,88.05,2.56062675]
[1771123686358,3.91087347,88.1,88.051,0.16703095]
[1771123686558,3.91087347,88.1,88.061,0.16703095]
[1771123690666,3.91087347,88.1,88.06,2.40556497]
[1771123690866,3.91087347,88.1,88.055,10.2263]
[1771123692268,3.91087347,88.1,88.05,2.40556497]
[1771123692863,3.91087347,88.1,88.049,0.13770994]
[1771123693462,3.91087347,88.1,88.051,10.2268]
[1771123695575,3.87630054,88.099,88.043,21.12899945]
[1771123695878,3.87630054,88.099,88.04,12.63376497]
[1771123696275,3.87630054,88.099,88.045,10.2275]
[1771123699577,3.87630054,88.099,88.019,28.02196576]
[1771123699578,3.87892947,88.089,88.038,21.12899945]
[1771123699875,3.87892947,88.089,88.037,21.12899945]
[1771123700380,3.87892947,88.089,88.036,21.12899945]
[1771123701280,3.87892947,88.089,88.035,21.12899945]
[1771123702280,3.87892947,88.089,88.041,0.16832789]
[1771123702574,3.8638185,88.086,88.025,21.12899945]
[1771123702975,3.8638185,88.069,88.02,21.12899945]
[1771123703179,3.8638185,88.069,88.014,10.2312]
[1771123703576,3.8638185,88.069,88.011,0.16832789]
[1771123703876,3.88703338,88.059,88.001,21.12899945]
[1771123704276,3.88703338,88.059,88.0,2.40556497]
[1771123704478,3.88703338,88.058,88.0,2.40556497]
[1771123704780,3.88703338,88.058,87.999,0.12189812]
[1771123705874,3.85350175,88.055,87.999,0.12189812]
[1771123706678,10.2268,88.053,87.999,0.12189812]
[1771123706885,3.85350175,88.052,87.999,0.12189812]
[1771123707479,3.85737399,88.049,87.999,0.12189812]
[1771123708078,3.85737399,88.049,88.0,2.40556497]
[1771123708384,3.85737399,88.036,87.999,0.12189812]
[1771123709283,3.85737399,88.036,87.984,0.18680574]
[1771123709585,3.85737399,88.036,87.99,2.40556497]
[1771123709781,3.85737399,88.036,87.99,2.59237071]
[1771123709982,3.85737399,88.036,87.991,0.18680574]
[1771123710983,3.85457957,88.034,87.991,0.18680574]
[1771123711383,3.85506467,88.046,88.001,0.18583555]
[1771123714178,3.85506467,88.046,87.99,2.40556497]
[1771123714179,3.85506467,88.046,87.991,0.17569376]
[1771123716585,3.85506467,88.046,88.0,2.40556497]
[1771123716891,3.85506467,88.046,88.001,0.20507975]
[1771123717791,3.85506467,88.046,88.002,0.20586406]
[1771123718878,3.85506467,88.046,88.0,2.40556497]
[1771123718879,3.85506467,88.046,88.004,0.20586406]
[1771123719392,3.85506467,88.046,88.005,10.2323]
[1771123721091,3.85506467,88.046,88.004,0.20586406]
[1771123721092,3.85506467,88.046,87.995,10.2334]
[1771123723798,3.85506467,88.046,87.99,2.52406233]
[1771123724594,3.87670525,88.039,87.979,0.13943251]
[1771123725196,3.8715905,88.029,87.979,0.13943251]
[1771123725395,3.8715905,88.029,87.967,0.14966201]
[1771123726401,3.8715905,88.027,87.971,0.14966201]
[1771123727497,3.87040718,88.025,87.971,0.14966201]
[1771123728604,3.87040718,88.022,87.971,0.14966201]
[1771123729205,3.87864962,88.019,87.971,0.14966201]
[1771123729406,3.87864962,88.019,87.96,2.54110874]
[1771123729601,2.40556497,88.01,87.96,0.13554377]
[1771123729801,3.87864962,88.004,87.96,0.13554377]
[1771123730604,3.87864962,88.002,87.95,12.64416497]
[1771123730802,3.87864962,88.002,87.95,2.40556497]
[1771123731203,3.87864962,88.002,87.951,0.17642766]
[1771123731803,2.40556497,88.01,87.951,0.17642766]
[1771123731804,3.85820767,88.0,87.951,0.17642766]
[1771123732003,3.85820767,88.0,87.941,171.17063177]
[1771123732004,3.85820767,87.999,87.941,171.17063177]
[1771123732904,3.85820767,87.999,87.941,0.17642766]
[1771123735204,3.85820767,87.999,87.941,10.41602766]
[1771123735403,3.85820767,87.999,87.942,0.08707229]
[1771123735603,3.85820767,87.999,87.92,1.97816065]
[1771123735604,3.90288535,88.012,87.961,0.08707229]
[1771123736006,3.90288535,88.012,87.96,2.40556497]
[1771123736007,3.90288535,88.012,87.962,0.08707229]
[1771123736201,3.90288535,88.012,87.98,2.40556497]
[1771123736407,3.90288535,88.012,87.971,0.08707229]
[1771123736605,3.90288535,88.012,87.96,2.49263726]
[1771123736907,3.90288535,88.012,87.96,0.08707229]
[1771123737212,3.90288535,88.012,87.96,2.49263726]
[1771123737711,3.90288535,88.012,87.963,0.0222077]
[1771123737911,3.90288535,88.012,87.971,0.0222077]
[1771123738713,3.90288535,88.012,87.973,10.2359]
[1771123739110,3.92369489,88.024,87.98,2.40556497]
[1771123739306,3.92369489,88.024,87.983,0.04545322]
[1771123739504,3.92369489,88.049,88.0,2.45101819]
[1771123740813,3.92369489,88.049,88.003,10.2325]
[1771123741013,3.92369489,88.049,88.0,2.45101819]
[1771123741718,237.45913752,88.052,88.011,0.07402984]
[1771123742015,237.45913752,88.052,88.02,2.40556497]
[1771123742818,3.90940658,88.051,88.0,2.40556497]
[1771123743011,3.90940658,88.051,88.0,2.40930376]
[1771123743923,3.90840346,88.049,87.99,2.40930376]
[1771123744216,3.90840346,88.039,87.974,0.07603608]
[1771123744424,3.90840346,88.029,87.974,0.07603608]
[1771123745116,3.90840346,88.029,87.98,10.2352]
[1771123745309,3.90840346,88.029,87.96,2.40930376]
[1771123745505,3.85709651,88.019,87.96,2.40930376]
[1771123745708,3.85709651,88.019,87.959,0.17864999]
[1771123746315,3.85709651,88.019,87.971,0.17864999]
[1771123746819,3.85709651,88.009,87.95,2.40930376]
[1771123747008,3.85709651,88.009,87.963,10.2371]
[1771123748119,3.85709651,88.009,87.971,10.2361]
[1771123751724,447.08,88.017,87.98,10.2351]
[1771123753021,3.85479341,88.021,87.98,10.2351]
[1771123754327,3.85479341,88.019,87.98,10.2351]
[1771123754524,3.85479341,88.019,87.952,0.18371343]
[1771123757732,3.85479341,88.019,87.953,10.2382]
[1771123758234,3.85479341,88.019,87.953,10.42675005]
[1771123758434,3.85479341,88.019,87.96,2.40930376]
[1771123760137,3.85479341,88.019,87.954,0.18855005]
[1771123760438,450.8,88.022,87.954,0.18855005]
[1771123760439,3.85236216,88.009,87.954,0.18855005]
[1771123761336,3.85236216,88.009,87.96,2.40930376]
[1771123762934,3.85236216,88.009,87.956,10.44094423]
[1771123763134,3.85236216,88.009,87.957,0.20210299]
[1771123763438,3.85236216,88.009,87.96,2.40930376]
[1771123765437,3.85236216,88.009,87.962,10.2373]
[1771123771642,3.85236216,88.009,87.957,0.20210299]
[1771123773838,3.84258755,87.989,87.933,21.12899945]
[1771123774036,159.097,88.046,87.91,28.30611241]
[1771123774037,3.84258755,87.979,87.919,21.12899945]
[1771123774233,3.84258755,87.969,87.91,2.40930376]
[1771123774433,3.84258755,87.959,87.909,0.20812514]
[1771123775441,3.84258755,87.959,87.911,0.19338409]
[1771123777139,3.84258755,87.959,87.9,2.40930376]
[1771123777338,2.40930376,87.95,87.898,0.20432528]
[1771123777641,3.84448749,87.949,87.898,0.20432528]
[1771123777849,3.84448749,87.939,87.885,0.20432528]
[1771123778742,3.84448749,87.938,87.885,0.20432528]
[1771123779441,3.85722077,87.935,87.885,0.20432528]
[1771123779644,3.85722077,87.929,87.872,0.17885871]
[1771123780046,3.85722077,87.925,87.872,0.17885871]
[1771123781644,3.88838124,87.919,87.872,0.17885871]
[1771123785347,3.88838124,87.919,87.87,2.40930376]
[1771123785348,3.88838124,87.919,87.863,10.2488]
[1771123786541,3.88838124,87.919,87.86,2.51596587]
[1771123786853,3.88838124,87.919,87.861,0.10666211]
[1771123790053,3.89078723,87.916,87.861,0.10666211]
[1771123790852,3.89078723,87.909,87.852,0.11789995]
[1771123791149,3.89078723,87.909,87.849,172.32381286]
[1771123791150,3.89078723,87.909,87.87,2.40930376]
[1771123791354,3.89078723,87.909,87.871,0.11937154]
[1771123791556,3.89005144,87.921,87.88,2.40930376]
[1771123792459,14.13225144,87.921,87.871,0.11937154]
[1771123792759,3.89005144,87.92,87.871,0.11937154]
[1771123793146,2.40930376,87.93,87.871,0.11937154]
[1771123793147,3.89036643,87.918,87.871,0.11937154]
[1771123794553,10.2413,87.928,87.881,0.11874157]
[1771123794956,14.13166643,87.928,87.881,0.11874157]
[1771123795154,3.89036643,87.927,87.881,0.11874157]
[1771123796252,3.89036643,87.927,87.9,2.40930376]
[1771123796453,3.89036643,87.927,87.89,2.54691596]
[1771123797251,3.89194052,87.941,87.891,0.11559339]
[1771123797450,3.89194052,87.941,87.893,0.11559339]
[1771123799764,3.89194052,87.941,87.894,10.2451]
[1771123800560,3.89928141,87.939,87.884,10.2462]
[1771123800760,3.89928141,87.937,87.87,2.40930376]
[1771123800965,3.89928141,87.936,87.87,2.51021536]
[1771123801166,3.89928141,87.936,87.88,2.40930376]
[1771123801763,3.95143626,87.929,87.883,10.2464]
[1771123801964,3.95143626,87.929,87.88,2.40930376]
[1771123802361,3.95143626,87.929,87.881,10.2467]
[1771123803262,3.95143626,87.929,87.87,2.51021536]
[1771123803469,3.95143626,87.929,87.889,10.2457]
[1771123804969,3.95143626,87.929,87.897,10.2448]
[1771123805170,2.41599075,87.95,87.88,2.41599075]
[1771123805373,2.41599075,87.95,87.895,3.60370263]
[1771123807274,3.61493002,87.949,87.895,3.60370263]
[1771123811674,3.61493002,87.949,87.9,6.01969338]
[1771123812076,3.61493002,87.949,87.9,3.60370263]
[1771123814079,3.61493002,87.949,87.902,3.91478691]
[1771123816590,3.80505363,87.967,87.911,3.90444788]
[1771123823988,3.80505363,87.99,87.941,3.94293619]
[1771123824285,3.80505363,87.989,87.941,3.94293619]
[1771123827084,3.80505363,87.989,87.942,10.2396]
[1771123827286,3.80505363,87.989,87.943,3.84870019]
[1771123833892,3.80505363,87.995,87.952,10.2384]
[1771123834588,3.80505363,87.995,87.952,14.01492711]
[1771123837296,3.80505363,87.995,87.952,3.77652711]
[1771123839100,3.80505363,87.989,87.943,3.82601325]
[1771123839597,3.80505363,87.989,87.945,10.2392]
[1771123840195,3.80505363,87.989,87.946,3.94097025]
[1771123840399,3.80505363,87.989,87.948,3.94097025]
[1771123842001,3.80505363,87.989,87.95,3.55928814]
[1771123843098,3.80505363,87.989,87.953,3.79588102]
[1771123846506,3.80505363,87.989,87.943,10.2394]
[1771123847407,3.80505363,87.989,87.943,14.03528102]
[1771123847706,3.80505363,87.989,87.93,2.41599075]
[1771123847707,3.80505363,87.989,87.946,10.2391]
[1771123849501,3.80505363,87.989,87.947,3.79588102]
[1771123854910,3.80505363,87.989,87.949,3.79588102]
[1771123855909,3.80505363,87.989,87.951,3.79588102]
[1771123868908,3.75214499,88.012,87.96,2.41255347]
[1771123869114,3.75214499,88.012,87.963,3.79588102]
[1771123869858,3.75214499,88.023,87.973,3.79588102]
[1771123870013,3.75214499,88.023,87.975,3.79588102]
[1771123870609,3.75214499,88.034,87.984,3.79588102]
[1771123876116,3.77061887,88.032,87.98,2.41255347]
[1771123876324,3.77061887,88.029,87.971,3.71210473]
[1771123876517,3.77061887,88.019,87.971,3.71210473]
[1771123876923,3.77061887,88.015,87.96,2.41255347]
[1771123877120,3.77061887,87.979,87.924,24.80923873]
[1771123877425,3.77061887,87.939,87.897,3.71210473]
[1771123877626,3.77061887,87.939,87.884,3.71210473]
[1771123877823,270.81255347,87.94,87.884,3.71210473]
[1771123877824,6.18317234,87.93,87.884,3.71210473]
[1771123878024,3.77061887,87.93,87.886,3.71210473]
[1771123878223,277.84,87.943,87.901,3.71210473]
[1771123881529,3.77061887,87.942,87.901,3.71210473]
[1771123885131,3.77061887,87.956,87.901,3.71210473]
[1771123886732,3.77061887,87.956,87.903,3.71210473]
[1771123888130,3.77061887,87.949,87.903,3.71210473]
[1771123888832,3.77061887,87.949,87.906,3.71210473]
[1771123889436,2.41255347,87.96,87.908,3.71210473]
[1771123889732,3.77061887,87.961,87.911,3.71210473]
[1771123890933,3.77061887,87.959,87.918,10.2423]
[1771123891530,3.77061887,87.959,87.911,3.71210473]
[1771123893933,3.77061887,87.959,87.912,10.243]
[1771123894339,3.77061887,87.959,87.9,2.41255347]
[1771123894340,3.77061887,87.959,87.914,10.2429]
[1771123895140,3.77061887,87.959,87.914,13.95500473]
[1771123895533,3.77061887,87.959,87.915,3.71210473]
[1771123895828,3.77061887,87.959,87.917,10.2425]
[1771123899946,3.77061887,87.959,87.917,13.95460473]
[1771123900145,3.77061887,87.959,87.848,354.9545]
[1771123900146,2.41255347,87.98,87.921,3.71210473]
[1771123900349,3.77061887,87.985,87.931,3.71210473]
[1771123900747,2.41255347,88.0,87.943,3.60361055]
[1771123900943,3.84102312,87.999,87.943,3.60361055]
[1771123902048,3.84102312,87.999,87.953,3.60361055]
[1771123904250,3.82021101,88.009,87.964,3.93045826]
[1771123905346,3.82021101,88.009,87.96,2.41255347]
[1771123905347,3.82021101,88.009,87.966,3.93045826]
[1771123910451,453.26,88.019,87.966,3.93045826]
[1771123910651,3.82021101,88.022,87.971,3.93045826]
[1771123915552,3.82021101,88.022,87.973,3.93045826]
[1771123917848,3.82021101,88.022,87.975,10.2357]
[1771123918053,2.41255347,88.02,87.975,14.16615826]
[1771123918247,3.82021101,88.019,87.975,14.16615826]
[1771123918450,3.82021101,88.019,87.976,3.93045826]
[1771123919653,3.82021101,88.019,87.979,10.2353]
[1771123920345,3.82021101,88.019,87.983,3.93045826]
[1771123921149,3.82021101,88.019,87.985,10.2346]
[1771123922639,3.82021101,88.019,87.985,14.16505826]
[1771123922846,3.82021101,88.019,87.989,10.234]
[1771123923849,3.82021101,88.044,88.0,3.93045826]
[1771123924154,453.52,88.035,88.001,3.93045826]
[1771123924654,453.52,88.057,88.019,3.93045826]
[1771123925355,3.82021101,88.056,88.006,3.93045826]
[1771123925553,2.41255347,88.05,88.006,3.93045826]
[1771123925753,3.82021101,88.049,88.006,3.93045826]
[1771123926353,3.82021101,88.049,88.012,10.2314]
[1771123928251,3.82021101,88.049,88.02,10.2305]
[1771123928457,3.82021101,88.061,88.02,10.2305]
[1771123928660,453.46,88.06,88.022,10.2302]
[1771123928851,453.46,88.06,88.022,14.16065826]
[1771123929656,3.82021101,88.075,88.032,3.93045826]
[1771123929857,453.42,88.067,88.032,3.93045826]
[1771123930262,3.82021101,88.089,88.036,3.93045826]
[1771123930461,3.82021101,88.087,88.036,3.93045826]
[1771123931752,3.82021101,88.087,88.044,10.2277]
[1771123933363,3.68483706,88.079,88.023,3.86701909]
[1771123933763,3.68483706,88.069,88.023,3.86701909]
[1771123933963,3.68483706,88.069,88.011,3.86701909]
[1771123934862,3.68483706,88.069,88.034,10.2288]
[1771123935654,3.68483706,88.069,88.011,3.86701909]
[1771123935655,3.68483706,88.069,88.022,10.2303]
[1771123935960,3.68483706,88.069,88.023,3.86701909]
[1771123936163,453.32,88.078,88.023,3.86701909]
[1771123936762,457.00483706,88.078,88.023,3.86701909]
[1771123936962,3.68483706,88.077,88.023,3.86701909]
[1771123937264,3.68483706,88.077,88.028,14.09661909]
[1771123938665,3.68483706,88.077,88.033,10.229]
[1771123939063,3.68483706,88.077,88.033,14.09601909]
[1771123939264,3.68483706,88.077,88.034,3.86701909]
[1771123941569,3.68483706,88.077,88.035,10.2287]
[1771123942264,3.68483706,88.077,88.036,3.86701909]
[1771123942871,3.68483706,88.077,88.041,3.86701909]
[1771123943166,3.68483706,88.088,88.041,3.86701909]
[1771123943871,3.68483706,88.088,88.045,3.86701909]
[1771123946477,3.68483706,88.088,88.035,14.09571909]
[1771123946671,3.68483706,88.088,88.036,3.86701909]
[1771123947171,3.68483706,88.088,88.039,10.2283]
[1771123947573,3.68483706,88.088,88.039,14.09531909]
[1771123947872,3.68483706,88.088,88.043,10.2278]
[1771123950872,448.55235812,88.099,88.048,3.86701909]
[1771123951166,453.2,88.102,88.061,3.86701909]
[1771123951376,453.2,88.101,88.061,3.86701909]
[1771123952469,453.2,88.101,88.071,10.2245]
[1771123953070,3.68483706,88.099,88.047,3.86701909]
[1771123953473,3.68483706,88.099,88.06,10.2258]
[1771123953674,3.68483706,88.089,88.06,10.2258]
[1771123953877,3.68483706,88.087,88.06,10.2258]
[1771123954378,3.68483706,88.087,88.05,10.227]
[1771123955673,3.68483706,88.087,88.059,10.2259]